bitfinex-derivatives/quotes_SOLF0:USTF0_20241229
["timestamp","ask_amount","ask_price","bid_price","bid_amount"]
[1735503238883,10.94506184,192.15,192.11,3.0]
[1735503239986,10.94506184,192.15,192.11,5.6077]
[1735503242679,2.6072,192.15,192.11,5.6077]
[1735503242883,8.33786184,192.14,192.11,5.6077]
[1735503245692,2.6072,192.15,192.11,5.6077]
[1735503249589,10.94546184,192.12,192.08,2.6081]
[1735503249795,8.33786184,192.1,192.05,10.17064759]
[1735503251193,8.33786184,192.1,192.06,2.6083]
[1735503251389,8.33786184,192.1,192.05,10.17064759]
[1735503251700,8.33786184,192.1,192.05,8.58294759]
[1735503252390,10.94576184,192.1,192.05,11.19134759]
[1735503252786,8.33786184,192.1,192.05,8.58294759]
[1735503253694,8.33786184,192.08,192.05,2.6085]
[1735503253898,8.33786184,192.06,191.98,11.31786184]
[1735503254499,1.4674,192.12,192.0,8.33786184]
[1735503254802,8.33786184,192.07,192.0,8.33786184]
[1735503256601,8.33786184,192.07,192.03,2.6088]
[1735503257798,8.33786184,192.13,192.06,8.33786184]
[1735503258396,8.33786184,192.11,192.04,9.93176184]
[1735503259403,10.94566184,192.11,192.05,2.6085]
[1735503259897,2.6078,192.11,192.05,2.6085]
[1735503260699,1.499,192.17,192.08,8.33786184]
[1735503260898,1.499,192.17,192.09,2.98]
[1735503260899,8.33786184,192.15,192.09,2.98]
[1735503262400,10.94506184,192.15,192.1,2.6078]
[1735503263607,10.94506184,192.15,192.11,2.6077]
[1735503266107,60.43286372,192.22,192.12,8.33786184]
[1735503266409,8.33786184,192.19,192.12,8.33786184]
[1735503266611,10.94486184,192.17,192.12,2.6076]
[1735503267307,10.94456184,192.19,192.12,8.33786184]
[1735503267508,3.02196857,192.22,192.14,8.33786184]
[1735503267699,8.33786184,192.21,192.15,2.98]
[1735503268302,69.48713636,192.25,192.16,8.33786184]
[1735503268506,8.33786184,192.21,192.15,2.98]
[1735503269307,8.33786184,192.21,192.17,2.6069]
[1735503269502,2.6062,192.22,192.17,2.6069]
[1735503269705,8.33786184,192.22,192.17,2.6069]
[1735503270011,10.94386184,192.24,192.19,2.6066]
[1735503270204,10.94386184,192.24,192.2,2.98]
[1735503271008,8.33786184,192.26,192.21,2.6063]
[1735503271412,8.33786184,192.26,192.2,11.31786184]
[1735503273115,8.33786184,192.26,192.22,2.6061]
[1735503273812,10.94326184,192.28,192.2,11.31786184]
[1735503274013,10.94326184,192.28,192.23,2.6061]
[1735503274507,8.33786184,192.28,192.24,2.6058]
[1735503274715,8.33786184,192.28,192.25,2.98]
[1735503275214,8.33786184,192.3,192.25,2.98]
[1735503275515,60.43489515,192.36,192.26,8.33786184]
[1735503275516,8.33786184,192.33,192.26,8.33786184]
[1735503275711,8.33786184,192.33,192.26,9.83016184]
[1735503276513,8.33786184,192.33,192.28,2.6054]
[1735503278112,10.94256184,192.33,192.28,2.6054]
[1735503283114,2.6045,192.35,192.28,8.33786184]
[1735503283415,2.6045,192.35,192.3,2.605]
[1735503283615,2.6045,192.35,192.31,2.98]
[1735503284009,2.6043,192.36,192.32,2.6048]
[1735503284915,8.33786184,192.37,192.31,2.98]
[1735503285506,8.33786184,192.37,192.33,2.6046]
[1735503285718,2.604,192.39,192.34,2.6045]
[1735503285719,8.33786184,192.39,192.34,2.6045]
[1735503285920,8.33786184,192.39,192.32,8.33786184]
[1735503286108,2.6038,192.4,192.34,8.33786184]
[1735503286514,8.33786184,192.41,192.36,8.33786184]
[1735503286816,8.33786184,192.41,192.37,2.98]
[1735503287811,2.6036,192.42,192.37,2.98]
[1735503288011,2.6036,192.42,192.37,5.5842]
[1735503288413,4.3987627,192.45,192.37,2.98]
[1735503288718,4.3987627,192.45,192.38,2.604]
[1735503288719,10.94126184,192.43,192.38,2.604]
[1735503289815,8.33786184,192.39,192.32,2.98]
[1735503290016,8.33786184,192.36,192.32,2.98]
[1735503290321,8.33786184,192.39,192.32,11.31786184]
[1735503290917,8.33786184,192.39,192.34,2.6046]
[1735503292715,8.33786184,192.39,192.34,10.94246184]
[1735503292924,10.94186184,192.39,192.33,2.6047]
[1735503293120,8.33786184,192.37,192.34,2.98]
[1735503293920,10.94216184,192.37,192.34,2.98]
[1735503295113,2.6041,192.38,192.34,2.98]
[1735503295317,8.33786184,192.39,192.34,2.98]
[1735503295918,10.94186184,192.39,192.34,2.98]
[1735503296122,8.33786184,192.39,192.34,2.98]
[1735503296325,8.33786184,192.37,192.34,2.98]
[1735503297016,2.6043,192.36,192.34,2.98]
[1735503297422,10.94206184,192.37,192.34,2.98]
[1735503297933,2.6042,192.37,192.34,2.98]
[1735503298434,10.94206184,192.37,192.34,2.98]
[1735503300619,2.6044,192.36,192.34,2.98]
[1735503300819,8.33786184,192.37,192.34,2.98]
[1735503301026,10.94236184,192.35,192.34,2.98]
[1735503301229,8.33786184,192.35,192.3,2.605]
[1735503301427,8.33786184,192.35,192.3,2.98]
[1735503301724,8.33786184,192.33,192.12,92.44239782]
[1735503302027,8.33786184,192.29,192.23,8.33786184]
[1735503302325,2.6054,192.28,192.23,2.98]
[1735503302527,8.33786184,192.29,192.23,11.31786184]
[1735503303122,10.94316184,192.29,192.23,8.33786184]
[1735503303317,8.33786184,192.29,192.2,1.4586]
[1735503303522,8.33786184,192.27,192.21,2.98]
[1735503304221,10.94346184,192.27,192.21,5.5863]
[1735503304422,10.94346184,192.27,192.21,2.98]
[1735503304721,10.94326184,192.29,192.23,2.606]
[1735503304921,8.33786184,192.31,192.24,8.33786184]
[1735503305928,10.94296184,192.31,192.26,2.6056]
[1735503306124,8.33786184,192.31,192.27,2.98]
[1735503307433,8.33786184,192.29,192.24,2.98]
[1735503308225,8.33786184,192.27,192.17,2.9759]
[1735503308424,8.33786184,192.25,192.18,11.31786184]
[1735503308622,8.33786184,192.27,192.18,11.31786184]
[1735503308834,8.33786184,192.27,192.2,8.33786184]
[1735503309229,10.94336184,192.27,192.22,2.6061]
[1735503309529,8.33786184,192.27,192.23,2.98]
[1735503311428,10.94346184,192.27,192.23,2.98]
[1735503312126,8.33786184,192.27,192.23,2.98]
[1735503312431,2.6057,192.26,192.23,2.98]
[1735503313831,10.94346184,192.27,192.23,2.98]
[1735503318229,1.5919,192.32,192.26,8.33786184]
[1735503318435,8.33786184,192.32,192.26,8.33786184]
[1735503319533,2.6051,192.31,192.27,2.6055]
[1735503319735,2.6051,192.31,192.28,2.98]
[1735503320333,10.94276184,192.32,192.28,2.98]
[1735503321137,10.94276184,192.32,192.28,5.5854]
[1735503327137,8.33786184,192.3,192.19,1.5704]
[1735503327339,8.33786184,192.27,192.2,2.98]
[1735503327743,2.6058,192.25,192.22,2.6062]
[1735503328046,8.33786184,192.25,192.22,2.98]
[1735503328241,2.606,192.24,192.22,2.98]
[1735503329643,2.606,192.24,192.18,1.593]
[1735503329644,8.33786184,192.23,192.17,9.84506184]
[1735503329848,8.33786184,192.23,192.18,2.98]
[1735503330544,2.6065,192.21,192.18,2.98]
[1735503331137,2.6062,192.22,192.18,2.98]
[1735503332343,2.6064,192.21,192.18,2.98]
[1735503332643,8.33786184,192.21,192.17,2.98]
[1735503332840,8.33786184,192.21,192.14,10.94506184]
[1735503333043,8.33786184,192.21,192.15,2.98]
[1735503333439,2.6065,192.2,192.15,2.98]
[1735503334740,10.94426184,192.21,192.15,5.5871]
[1735503335049,8.33786184,192.23,192.16,8.33786184]
[1735503336349,10.94406184,192.23,192.18,2.6067]
[1735503336550,8.33786184,192.23,192.16,8.33786184]
[1735503336842,2.6066,192.19,192.15,2.98]
[1735503337242,8.33786184,192.21,192.14,8.33786184]
[1735503337439,12.38292066,192.29,192.1,3.0801]
[1735503337440,2.6069,192.18,192.13,5.5874]
[1735503338141,8.33786184,192.19,192.13,5.5874]
[1735503338345,2.6069,192.17,192.12,10.94536184]
[1735503338552,8.33786184,192.15,192.08,8.33786184]
[1735503338745,8.33786184,192.15,192.09,2.98]
[1735503339254,8.33786184,192.15,192.1,2.6078]
[1735503339448,8.33786184,192.15,192.11,2.98]
[1735503340651,8.33786184,192.15,192.08,2.98]
[1735503341152,8.33786184,192.15,192.08,5.5881]
[1735503342149,2.6076,192.12,192.08,2.98]
[1735503342450,8.33786184,192.13,192.08,2.98]
[1735503342850,2.6077,192.11,192.08,2.98]
[1735503343449,2.6076,192.12,192.08,2.98]
[1735503343755,8.33786184,192.13,192.08,2.98]
[1735503344156,10.94516184,192.15,192.08,11.31786184]
[1735503344351,10.94516184,192.15,192.09,2.6079]
[1735503344651,2.6074,192.13,192.08,11.31786184]
[1735503344849,8.33786184,192.15,192.08,13.92586184]
[1735503345050,8.33786184,192.15,192.08,11.31786184]
[1735503345254,2.6073,192.14,192.08,11.31786184]
[1735503346545,8.33786184,192.19,192.12,8.33786184]
[1735503346751,8.33786184,192.19,192.13,2.98]
[1735503347058,10.94456184,192.19,192.13,5.5873]
[1735503347657,2.6068,192.18,192.13,5.5873]
[1735503349157,2.6069,192.17,192.13,5.5873]
[1735503351351,2.6068,192.18,192.13,2.98]
[1735503351661,13.0327351,192.21,192.13,2.98]
[1735503352455,2.6069,192.17,192.13,5.5873]
[1735503353252,2.6067,192.19,192.13,5.5873]
[1735503353555,13.0327351,192.21,192.11,5.5876]
[1735503353867,2.6073,192.15,192.11,5.5876]
[1735503354458,13.0327351,192.18,192.11,5.5876]
[1735503354660,2.6073,192.14,192.11,5.5876]
[1735503356155,2.6073,192.14,192.1,2.6078]
[1735503356363,2.6076,192.12,192.09,2.98]
[1735503357361,2.6075,192.13,192.09,2.98]
[1735503360574,2.6076,192.12,192.09,2.98]
[1735503361072,1.5372,192.17,192.08,2.98]
[1735503361267,2.6077,192.11,192.08,2.98]
[1735503361472,13.0327351,192.15,192.06,2.98]
[1735503361873,2.608,192.1,192.06,2.98]
[1735503362270,13.0327351,192.12,192.04,3.0253]
[1735503362570,13.0327351,192.12,192.04,6.0053]
[1735503362766,2.6083,192.07,192.04,6.0053]
[1735503362973,13.0327351,192.12,192.04,6.0053]
[1735503363365,2.6083,192.07,192.03,2.6087]
[1735503363868,13.0327351,192.12,192.04,2.6086]
[1735503364568,13.0327351,192.12,191.98,16.68856135]
[1735503364766,2.6085,192.05,192.01,2.609]
[1735503365371,2.6082,192.08,192.03,2.6087]
[1735503365975,2.6082,192.08,192.04,2.6086]
[1735503367072,17.5339351,192.14,192.04,2.98]
[1735503367776,2.608,192.1,192.06,2.6083]
[1735503368168,17.5339351,192.14,192.06,2.6083]
[1735503368568,2.608,192.09,192.05,2.6085]
[1735503371974,2.6082,192.08,192.05,2.6085]
[1735503372275,2.6082,192.08,192.04,2.6086]
[1735503372967,2.6082,192.08,192.05,2.6085]
[1735503373674,2.6082,192.08,192.03,2.98]
[1735503373876,2.6082,192.08,192.04,2.6086]
[1735503375574,10.95586515,192.08,192.04,2.6086]
[1735503375975,2.6083,192.07,192.03,5.5888]
[1735503376376,2.6083,192.07,192.03,2.6088]
[1735503377483,8.34766515,192.06,191.98,3.65582625]
[1735503377781,8.34766515,192.02,191.95,12.92216515]
[1735503378382,2.6092,192.0,191.95,15.53196515]
[1735503379080,2.6092,192.0,191.96,2.6097]
[1735503379674,8.34766515,192.01,191.96,2.6097]
[1735503379871,10.95676515,192.01,191.96,2.6097]
[1735503380281,2.6091,192.01,191.96,2.6097]
[1735503382782,8.34766515,192.01,191.95,4.1404]
[1735503383588,8.34766515,191.99,191.92,2.6103]
[1735503383786,8.34766515,191.97,191.91,1.5382]
[1735503384587,2.61,191.94,191.89,10.95836515]
[1735503384783,8.34766515,191.95,191.89,8.34766515]
[1735503385086,8.34766515,191.95,191.84,1.5698]
[1735503385386,8.34766515,191.93,191.85,8.34766515]
[1735503385582,2.6105,191.91,191.86,2.98]
[1735503388285,13.06854062,191.91,191.84,1.5698]
[1735503388592,13.06854062,191.91,191.82,4.4798]
[1735503388793,13.06854062,191.91,191.82,1.4998]
[1735503388980,13.06854062,191.91,191.82,4.4798]
[1735503390188,2.6111,191.87,191.82,4.4798]
[1735503391687,1.5382,191.95,191.82,4.4798]
[1735503391991,13.06854062,191.92,191.82,4.4798]
[1735503392792,13.06854062,191.92,191.82,17.54834062]
[1735503393891,2.6105,191.91,191.85,2.6112]
[1735503394485,13.06854062,191.93,191.82,4.4798]
[1735503394686,2.6109,191.88,191.83,2.6114]
[1735503395089,2.98,191.96,191.84,2.98]
[1735503395285,13.06854062,191.94,191.84,2.98]
[1735503395703,2.6104,191.91,191.84,5.5914]
[1735503395984,13.06854062,191.94,191.85,2.98]
[1735503396388,13.06854062,191.94,191.82,14.56834062]
[1735503396596,2.6105,191.91,191.85,2.6112]
[1735503396987,2.6105,191.91,191.86,2.6111]
[1735503397188,2.6102,191.93,191.83,2.98]
[1735503397387,13.06854062,191.95,191.83,2.98]
[1735503398293,2.6105,191.91,191.86,2.611]
[1735503399991,13.06854062,191.92,191.83,2.98]
[1735503400294,13.06854062,191.89,191.83,2.98]
[1735503400494,2.611,191.87,191.82,4.4798]
[1735503400793,13.06854062,191.89,191.82,1.4998]
[1735503401807,13.06854062,191.89,191.81,2.6117]
[1735503401994,13.06854062,191.89,191.81,5.6317]
[1735503402194,2.6114,191.84,191.81,3.02]
[1735503403589,2.6114,191.84,191.8,2.6119]
[1735503403793,2.6114,191.84,191.79,5.632]
[1735503403994,2.6114,191.84,191.79,2.612]
[1735503404195,2.6117,191.82,191.76,5.84037646]
[1735503404395,2.6117,191.82,191.78,3.02]
[1735503404790,2.6117,191.82,191.77,3.02]
[1735503405195,2.6117,191.82,191.76,5.84037646]
[1735503405196,13.06854062,191.86,191.76,5.84037646]
[1735503405395,2.6118,191.81,191.76,8.45277646]
[1735503406093,2.612,191.8,191.72,2.6129]
[1735503406293,13.06854062,191.83,191.73,3.02]
[1735503407400,13.06854062,191.8,191.73,3.02]
[1735503407590,13.06854062,191.8,191.72,2.613]
[1735503407794,13.06854062,191.8,191.73,3.02]
[1735503408095,13.06854062,191.8,191.72,2.613]
[1735503408096,13.06854062,191.8,191.68,1.5911]
[1735503408296,8.38090855,191.71,191.66,6.0096]
[1735503408508,8.38090855,191.71,191.66,2.9896]
[1735503408693,8.38090855,191.73,191.68,2.6135]
[1735503409191,8.38090855,191.73,191.66,6.0096]
[1735503409192,8.38090855,191.73,191.66,3.02]
[1735503409401,10.99380855,191.73,191.67,2.6137]
[1735503409596,10.99380855,191.73,191.67,5.6337]
[1735503409797,10.99380855,191.73,191.67,2.6137]
[1735503409998,8.38090855,191.71,191.66,3.02]
[1735503410194,8.38090855,191.71,191.66,5.6338]
[1735503410599,10.99410855,191.71,191.66,3.02]
[1735503411402,10.99410855,191.71,191.65,5.6339]
[1735503412195,7.6683,191.79,191.65,3.02]
[1735503412402,13.093117,191.76,191.65,3.02]
[1735503413697,2.6126,191.75,191.7,2.6133]
[1735503414000,7.6683,191.79,191.7,2.6133]
[1735503414001,16.190817,191.79,191.7,3.02]
[1735503414504,2.6123,191.77,191.71,2.6131]
[1735503414904,16.190817,191.79,191.71,2.6131]
[1735503416299,13.093117,191.76,191.68,5.6335]
[1735503416801,2.613,191.73,191.68,5.6335]
[1735503417304,13.093117,191.76,191.68,3.02]
[1735503417502,3.0977,191.79,191.54,5.84708698]
[1735503417503,13.093117,191.7,191.54,5.84708698]
[1735503417804,13.093117,191.67,191.54,21.96020398]
[1735503417999,2.6138,191.66,191.54,21.96020398]
[1735503418199,2.6138,191.66,191.59,2.6146]
[1735503418506,15.706817,191.67,191.59,3.02]
[1735503418905,13.093117,191.7,191.59,3.02]
[1735503419205,3.0977,191.79,191.66,13.093117]
[1735503419206,14.665417,191.79,191.66,13.093117]
[1735503419405,14.665417,191.79,191.67,3.02]
[1735503419608,2.6127,191.75,191.68,2.6135]
[1735503420703,13.093117,191.76,191.67,3.02]
[1735503421199,15.705717,191.76,191.67,3.02]
[1735503421398,14.665417,191.79,191.67,16.113117]
[1735503421598,14.665417,191.79,191.68,4.6678]
[1735503421807,15.705217,191.79,191.72,2.613]
[1735503422411,13.093117,191.79,191.72,2.613]
[1735503422710,13.093117,191.79,191.74,2.6127]
[1735503422900,13.093117,191.79,191.74,5.6327]
[1735503423102,13.093117,191.82,191.74,3.02]
[1735503423307,2.6118,191.81,191.75,2.6126]
[1735503423601,13.093117,191.82,191.74,3.02]
[1735503423808,13.093117,191.82,191.75,2.6126]
[1735503423809,2.6119,191.8,191.75,2.6126]
[1735503424206,13.093117,191.82,191.75,2.6126]
[1735503424402,13.093117,191.82,191.74,3.02]
[1735503424608,15.704917,191.82,191.76,2.6125]
[1735503425105,15.704917,191.82,191.77,2.6123]
[1735503425713,13.093117,191.82,191.78,3.02]
[1735503426007,2.6118,191.81,191.78,3.02]
[1735503426613,2.612,191.8,191.78,3.02]
[1735503426812,2.612,191.8,191.7,13.093117]
[1735503427013,13.093117,191.82,191.71,3.02]
[1735503427615,2.6121,191.79,191.74,2.6126]
[1735503428008,13.093117,191.82,191.71,3.02]
[1735503428213,2.6119,191.8,191.71,3.02]
[1735503428910,2.6119,191.8,191.74,2.6127]
[1735503429715,13.093117,191.82,191.74,2.6127]
[1735503430016,2.6121,191.79,191.74,2.6127]
[1735503430416,2.6121,191.79,191.75,3.02]
[1735503430618,13.093117,191.79,191.68,4.6678]
[1735503430813,13.093117,191.79,191.69,3.02]
[1735503432122,2.6123,191.78,191.72,2.613]
[1735503432421,13.093117,191.82,191.69,3.02]
[1735503432819,2.6121,191.79,191.73,2.6127]
[1735503433015,2.6121,191.79,191.74,3.08]
[1735503433625,13.093117,191.82,191.74,5.6927]
[1735503433921,2.6121,191.79,191.74,5.6927]
[1735503434121,13.093117,191.82,191.74,5.6927]
[1735503434721,13.093117,191.82,191.74,3.08]
[1735503436119,2.6126,191.75,191.74,3.08]
[1735503437325,13.093117,191.79,191.74,3.08]
[1735503437621,2.6125,191.77,191.74,3.08]
[1735503438319,2.6123,191.78,191.74,3.08]
[1735503438514,13.093117,191.79,191.74,3.08]
[1735503439523,2.6126,191.76,191.74,3.08]
[1735503441727,13.093117,191.79,191.68,4.6678]
[1735503441929,13.093117,191.79,191.69,3.08]
[1735503442128,13.093117,191.79,191.7,3.08]
[1735503442421,2.6131,191.72,191.7,3.08]
[1735503442729,56.82470955,191.83,191.71,8.37893649]
[1735503442922,2.6125,191.76,191.73,2.6128]
[1735503445726,2.6124,191.77,191.73,2.6128]
[1735503446024,56.82470955,191.83,191.75,2.6126]
[1735503446229,10.99093649,191.8,191.76,3.08]
[1735503446625,8.37893649,191.8,191.76,3.08]
[1735503446932,56.82470955,191.83,191.76,5.6925]
[1735503447230,8.37893649,191.8,191.76,5.6925]
[1735503447633,2.6121,191.79,191.76,5.6925]
[1735503448320,8.37893649,191.8,191.59,7.22408003]
[1735503448527,2.6125,191.76,191.73,2.6128]
[1735503448732,2.6125,191.76,191.74,3.08]
[1735503450129,2.6125,191.76,191.73,2.6128]
[1735503450331,2.6125,191.76,191.74,3.08]
[1735503451525,8.37893649,191.78,191.74,3.08]
[1735503451526,2.6124,191.77,191.74,5.6927]
[1735503452230,2.6126,191.76,191.74,3.08]
[1735503452431,8.37893649,191.78,191.74,3.08]
[1735503453530,2.6126,191.76,191.74,3.08]
[1735503454230,2.6126,191.75,191.74,3.08]
[1735503454733,56.82470955,191.82,191.74,3.08]
[1735503455034,2.6122,191.79,191.74,3.08]
[1735503455229,8.37893649,191.8,191.74,3.08]
[1735503456531,2.6122,191.78,191.75,2.6126]
[1735503457627,2.6122,191.78,191.74,5.6927]
[1735503458330,2.6125,191.77,191.73,2.6128]
[1735503458637,8.37893649,191.78,191.74,3.08]
[1735503459234,2.6124,191.77,191.74,3.08]
[1735503460329,2.6124,191.77,191.73,2.6128]
[1735503460534,2.6124,191.77,191.74,3.08]
[1735503460928,2.6125,191.76,191.75,3.08]
[1735503461729,2.6127,191.75,191.74,3.08]
[1735503464425,2.6125,191.76,191.74,3.08]
[1735503467940,8.37893649,191.76,191.61,4.6334]
[1735503468236,2.6129,191.73,191.69,10.99223649]
[1735503468437,2.6129,191.73,191.7,3.08]
[1735503468835,8.37893649,191.74,191.7,3.08]
[1735503469040,10.99173649,191.74,191.7,5.6932]
[1735503469738,2.6128,191.74,191.71,2.6131]
[1735503469945,59.43700955,191.77,191.71,8.37893649]
[1735503470541,2.6123,191.77,191.73,2.6128]
[1735503471236,2.6122,191.78,191.73,8.37893649]
[1735503472241,2.6125,191.76,191.73,8.37893649]
[1735503476344,8.37893649,191.78,191.61,10.27948003]
[1735503476547,8.37893649,191.76,191.69,2.6134]
[1735503476740,8.37893649,191.76,191.7,3.08]
[1735503477145,2.6129,191.74,191.7,3.08]
[1735503478050,2.6129,191.74,191.7,5.6932]
[1735503478544,8.37893649,191.76,191.7,3.08]
[1735503478750,2.613,191.72,191.7,3.08]
[1735503478951,8.37893649,191.74,191.71,3.08]
[1735503480555,2.613,191.72,191.71,3.08]
[1735503482154,8.37893649,191.74,191.62,1.4622]
[1735503482357,8.37893649,191.7,191.65,8.37893649]
[1735503482753,2.6136,191.68,191.65,8.37893649]
[1735503484258,2.6133,191.7,191.66,2.6138]
[1735503487460,2.6135,191.69,191.65,10.99283649]
[1735503487664,8.37893649,191.7,191.65,2.6139]
[1735503487960,8.37893649,191.7,191.66,3.08]
[1735503488662,2.6137,191.68,191.66,3.08]
[1735503489263,8.37893649,191.7,191.66,3.08]
[1735503489462,8.37893649,191.68,191.52,5.2315]
[1735503489658,8.37893649,191.66,191.59,8.37893649]
[1735503489857,8.37893649,191.64,191.59,8.37893649]
[1735503490059,8.37893649,191.66,191.6,2.6146]
[1735503491567,2.6143,191.63,191.6,2.6146]
[1735503491759,56.82470955,191.72,191.63,2.6141]
[1735503492057,65.20364604,191.72,191.66,8.37893649]
[1735503492257,8.37893649,191.72,191.66,8.37893649]
[1735503492564,8.37893649,191.72,191.66,10.99273649]
[1735503493061,2.6134,191.7,191.66,10.99273649]
[1735503493262,8.37893649,191.72,191.66,10.99273649]
[1735503493457,8.37893649,191.7,191.65,2.614]
[1735503493658,2.6137,191.67,191.64,3.08]
[1735503495366,2.6139,191.66,191.64,3.08]
[1735503500270,2.6137,191.67,191.64,3.08]
[1735503503169,2.6138,191.66,191.64,3.08]
[1735503506174,2.6141,191.64,191.6,2.6146]
[1735503506371,8.37893649,191.66,191.61,3.06]
[1735503507675,2.6143,191.63,191.59,10.99373649]
[1735503507870,2.6143,191.63,191.6,3.06]
[1735503508266,2.6143,191.63,191.55,1.4656]
[1735503508267,9.53152695,191.73,191.55,3.06]
[1735503508472,8.37893649,191.65,191.58,8.37893649]
[1735503508973,2.6142,191.64,191.59,2.6148]
[1735503509372,2.6143,191.63,191.59,2.6148]
[1735503510576,2.6143,191.63,191.6,3.06]
[1735503511076,2.6141,191.64,191.6,5.6746]
[1735503511878,8.37893649,191.67,191.6,11.43893649]
[1735503513172,2.6141,191.65,191.61,2.6145]
[1735503513476,2.6141,191.65,191.6,3.06]
[1735503513477,8.37893649,191.65,191.6,3.06]
[1735503513987,8.37893649,191.65,191.56,1.5305]
[1735503514279,2.6143,191.63,191.57,11.43893649]
[1735503514675,2.6146,191.61,191.57,5.675]
[1735503514873,2.6146,191.61,191.57,2.615]
[1735503515073,2.6146,191.61,191.58,3.06]
[1735503515276,2.6144,191.62,191.58,5.6749]
[1735503515774,2.6144,191.62,191.58,3.06]
[1735503517082,2.6144,191.62,191.58,11.43893649]
[1735503517582,2.6144,191.62,191.58,14.05383649]
[1735503519685,8.37893649,191.62,191.51,1.5517]
[1735503519983,8.37893649,191.62,191.55,8.37893649]
[1735503520183,8.37893649,191.62,191.49,5.07928663]
[1735503520386,3.06,191.67,191.5,3.06]
[1735503520684,2.615,191.58,191.54,8.37893649]
[1735503520880,8.37893649,191.61,191.56,8.37893649]
[1735503521181,8.37893649,191.62,191.57,3.06]
[1735503521784,2.6148,191.59,191.57,3.06]
[1735503522888,3.06,191.67,191.58,8.37893649]
[1735503523089,8.37893649,191.65,191.58,8.37893649]
[1735503523384,8.37893649,191.65,191.59,2.6148]
[1735503523585,8.37893649,191.63,191.57,11.43893649]
[1735503523784,59.87470955,191.68,191.57,11.43893649]
[1735503523990,2.6142,191.64,191.6,2.6146]
[1735503524890,8.37893649,191.65,191.6,2.6146]
[1735503525088,2.6143,191.63,191.6,2.6146]
[1735503525993,2.6143,191.63,191.59,2.6147]
[1735503526188,2.6145,191.61,191.57,11.43893649]
[1735503526689,2.6147,191.6,191.57,11.43893649]
[1735503526990,8.37893649,191.63,191.57,3.06]
[1735503527193,8.37893649,191.61,191.56,2.6152]
[1735503527393,8.37893649,191.61,191.57,3.06]
[1735503528590,2.6149,191.59,191.56,2.6152]
[1735503528791,2.6149,191.59,191.57,3.06]
[1735503529292,2.6149,191.58,191.57,3.06]
[1735503532897,2.6149,191.58,191.54,8.37893649]
[1735503533093,2.6149,191.58,191.55,3.06]
[1735503533396,8.37893649,191.57,191.49,3.1762]
[1735503533597,8.37893649,191.53,191.5,3.06]
[1735503534198,10.99463649,191.53,191.5,3.06]
[1735503534496,8.37893649,191.55,191.51,3.06]
[1735503535394,4.677,191.61,191.51,11.43893649]
[1735503535606,8.37893649,191.59,191.51,11.43893649]
[1735503535998,2.615,191.58,191.54,2.6153]
[1735503536991,2.6153,191.56,191.54,3.06]
[1735503537192,8.37893649,191.59,191.54,3.06]
[1735503537398,8.37893649,191.61,191.54,3.06]
[1735503538294,10.99343649,191.61,191.56,2.6151]
[1735503538492,8.37893649,191.61,191.56,2.6151]
[1735503538695,8.37893649,191.59,191.56,2.6151]
[1735503539798,8.37893649,191.59,191.54,3.06]
[1735503539799,8.37893649,191.59,191.54,5.6754]
[1735503540497,2.6149,191.58,191.54,5.6754]
[1735503541398,8.37893649,191.63,191.58,2.6149]
[1735503541599,8.37893649,191.63,191.59,3.06]
[1735503542300,10.99333649,191.63,191.59,5.6747]
[1735503542503,8.37893649,191.63,191.59,3.06]
[1735503543399,2.6144,191.62,191.59,3.06]
[1735503543602,8.37893649,191.63,191.59,3.06]
[1735503543803,8.37893649,191.63,191.6,3.06]
[1735503544398,8.37893649,191.63,191.6,5.6746]
[1735503546108,10.99313649,191.64,191.61,2.6145]